bitfinex/quotes_SOLUSD_20250811
["timestamp","ask_amount","ask_price","bid_price","bid_amount"]
[1754940230362,6.88309915,178.05,178.04,74.43069984]
[1754940230769,6.69241793,178.05,178.04,74.43069984]
[1754940231277,12.49949903,178.05,178.04,74.43069984]
[1754940231638,11.84949903,178.05,178.04,74.43069984]
[1754940231841,6.23309915,178.05,178.04,74.43069984]
[1754940232262,6.04241793,178.05,178.04,74.43069984]
[1754940232767,11.65881781,178.05,178.04,74.43069984]
[1754940233150,12.30881781,178.05,178.04,74.43069984]
[1754940233353,12.4995473,178.05,178.04,74.43069984]
[1754940234081,26.0,178.03,178.02,39.46]
[1754940234381,32.04241793,178.03,178.02,129.36]
[1754940234748,26.0,178.03,178.02,130.05]
[1754940238452,26.0,178.03,178.02,129.36]
[1754940238655,37.65944876,178.03,178.02,129.36]
[1754940239873,38.30944876,178.03,178.02,129.34]
[1754940240257,38.30944876,178.03,178.02,89.9]
[1754940240452,38.50019541,178.03,178.02,89.9]
[1754940240774,37.85019541,178.03,178.02,89.9]
[1754940240969,37.85019541,178.03,178.02,129.34]
[1754940241756,31.80777748,178.03,178.02,129.34]
[1754940241957,37.85019541,178.03,178.02,129.34]
[1754940242171,38.50019541,178.03,178.02,89.9]
[1754940242360,57.24220077,178.03,177.97,89.9]
[1754940242565,6.04241793,177.98,177.97,129.38]
[1754940243465,6.23318712,177.98,177.97,129.38]
[1754940243671,6.23318712,177.98,177.97,130.07]
[1754940243672,0.19076919,177.98,177.97,130.07]
[1754940243986,6.04241793,177.99,177.97,130.07]
[1754940244156,6.04241793,177.99,177.98,0.69]
[1754940245075,6.04241793,178.0,177.98,0.69]
[1754940245381,5.80851592,178.01,177.99,39.46]
[1754940245957,0.19076919,178.01,178.0,0.69]
[1754940246159,26.19076919,178.01,178.0,0.69]
[1754940246355,32.04241793,178.03,178.0,90.59]
[1754940246573,6.04241793,178.03,178.01,39.48]
[1754940246780,26.0,178.02,178.01,40.17]
[1754940248791,32.04241793,178.03,178.01,40.17]
[1754940249479,26.0,178.03,178.01,40.17]
[1754940250761,32.04241793,178.03,178.01,40.17]
[1754940252284,32.04241793,178.03,178.01,130.07]
[1754940252992,26.0,178.03,178.02,0.69]
[1754940254470,0.22076919,178.05,178.02,6.73241793]
[1754940254771,0.03,178.05,178.03,40.13]
[1754940255179,0.03,178.05,178.04,0.69]
[1754940255383,0.03,178.05,178.04,90.59]
[1754940256074,26.03,178.05,178.04,90.59]
[1754940258209,0.03,178.05,178.04,90.59]
[1754940258373,0.03,178.05,178.04,96.63241793]
[1754940258573,0.03,178.05,178.04,90.59]
[1754940263070,0.03,178.05,178.04,96.63241793]
[1754940263675,0.03,178.05,178.04,90.59]
[1754940264580,0.03,178.05,178.04,89.9]
[1754940265776,0.03,178.05,178.04,129.3]
[1754940266785,0.03,178.05,178.04,136.03241793]
[1754940267199,0.03,178.05,178.04,129.99]
[1754940267502,0.03,178.05,178.04,136.03241793]
[1754940267675,0.03,178.05,178.04,129.99]
[1754940268084,0.03,178.05,178.04,129.3]
[1754940268776,0.03,178.05,178.04,89.9]
[1754940268977,0.03,178.05,178.04,129.42]
[1754940269288,6.76241793,178.05,178.04,129.42]
[1754940269680,6.26312489,178.05,178.04,129.42]
[1754940270011,6.95312489,178.05,178.04,129.42]
[1754940270219,33.51774574,178.05,178.04,129.42]
[1754940270416,33.51774574,178.05,178.01,0.06]
[1754940270599,26.0,178.03,178.02,39.54]
[1754940270799,33.29703878,178.03,178.02,39.54]
[1754940271014,33.48774574,178.03,178.02,39.54]
[1754940271423,39.10477657,178.03,178.01,39.62]
[1754940271597,6.04241793,178.02,178.01,39.62]
[1754940274227,33.06235864,178.03,178.01,39.62]
[1754940274410,6.04241793,178.02,178.01,39.62]
[1754940274730,26.19070696,178.03,178.01,40.31]
[1754940274911,26.19070696,178.03,178.02,0.69]
[1754940275232,26.0,178.03,178.02,0.69]
[1754940276125,26.0,178.03,178.02,90.59]
[1754940276423,32.04241793,178.03,178.02,90.59]
[1754940276632,26.0,178.03,178.02,89.9]
[1754940276798,26.0,178.03,178.02,90.59]
[1754940277000,0.03,178.05,178.02,90.59]
[1754940277201,26.0,178.04,178.03,40.23]
[1754940277400,0.03,178.05,178.03,46.27241793]
[1754940277702,0.03,178.05,178.04,0.69]
[1754940277906,0.03,178.05,178.04,96.63241793]
[1754940278602,0.03,178.05,178.04,90.59]
[1754940278801,0.03,178.05,178.04,96.63241793]
[1754940279506,0.03,178.05,178.04,90.59]
[1754940279708,0.03,178.05,178.04,96.63241793]
[1754940284230,6.07241793,178.05,178.04,89.9]
[1754940284403,6.07241793,178.05,178.04,129.44]
[1754940284603,6.76241793,178.05,178.04,129.44]
[1754940285615,12.37881781,178.05,178.04,129.44]
[1754940286030,12.56952048,178.05,178.04,129.44]
[1754940286407,13.13414133,178.05,178.04,89.9]
[1754940286606,39.13414133,178.05,178.04,89.9]
[1754940287245,38.44414133,178.05,178.04,89.9]
[1754940287940,38.44414133,178.05,178.03,39.52]
[1754940288114,6.04241793,178.04,178.03,39.52]
[1754940288640,6.2331206,178.04,178.03,39.52]
[1754940288868,0.19070267,178.04,178.03,39.52]
[1754940289174,0.19070267,178.04,178.03,40.22]
[1754940289866,6.2331206,178.04,178.03,39.52]
[1754940293769,6.2331206,178.04,178.03,129.42]
[1754940293954,11.84983594,178.04,178.03,129.42]
[1754940298151,11.84983594,178.04,178.03,129.48]
[1754940300750,12.54983594,178.04,178.03,89.96]
[1754940301154,17.2530413,178.04,178.03,0.06]
[1754940301358,12.54983594,178.04,178.03,0.06]
[1754940301559,12.35913327,178.04,178.03,0.06]
[1754940302072,52.00987992,178.04,178.03,0.06]
[1754940302675,26.0,178.02,178.01,0.06]
[1754940302976,32.60703878,178.02,178.01,0.06]
[1754940303283,26.7553675,178.02,178.01,0.06]
[1754940303469,32.79778543,178.02,178.01,0.06]
[1754940305006,38.41513179,178.02,178.01,0.06]
[1754940306255,38.41513179,178.02,178.01,0.76]
[1754940306886,38.41513179,178.02,178.01,0.06]
[1754940307381,38.41513179,178.02,178.01,0.76]
[1754940308085,38.41513179,178.02,178.01,0.06]
[1754940308587,38.41513179,178.02,178.01,89.96]
[1754940309759,32.37271386,178.02,178.01,89.96]
[1754940309958,26.19074665,178.02,178.01,90.66]
[1754940310181,32.04241793,178.02,178.01,90.66]
[1754940310876,26.0,178.02,178.01,0.76]
[1754940311964,0.19078851,178.04,178.01,0.76]
[1754940312181,26.0,178.03,178.02,39.46]
[1754940312372,26.0,178.03,178.02,40.16]
[1754940314265,0.19078851,178.04,178.02,46.20241793]
[1754940314466,26.19078851,178.04,178.03,0.7]
[1754940314673,26.0,178.04,178.03,0.7]
[1754940315574,38.35921959,178.04,178.02,129.36]
[1754940315762,6.60703878,178.03,178.02,89.9]
[1754940316166,38.41458602,178.04,178.02,90.6]
[1754940316389,38.22384044,178.04,178.02,90.6]
[1754940316796,6.04241793,178.03,178.02,89.9]
[1754940317371,6.04241793,178.03,178.02,90.61]
[1754940317987,6.04241793,178.03,178.02,89.9]
[1754940318370,11.65944876,178.03,178.02,89.9]
[1754940318570,37.65944876,178.03,178.02,89.9]
[1754940320075,37.65944876,178.03,178.02,90.61]
[1754940320278,37.65944876,178.03,178.02,89.9]
[1754940324282,31.61703083,178.03,178.02,90.61]
[1754940325902,26.0,178.03,178.02,90.61]
[1754940326197,31.61703083,178.03,178.02,90.61]
[1754940326602,26.0,178.03,178.02,90.61]
[1754940327206,31.61703083,178.03,178.02,40.13]
[1754940328293,26.0,178.03,178.02,40.13]
[1754940328597,31.61703083,178.03,178.02,40.13]
[1754940329519,37.65944876,178.03,178.02,39.42]
[1754940330297,31.61703083,178.03,178.02,39.42]
[1754940330991,26.0,178.03,178.02,39.42]
[1754940331197,26.0,178.03,178.02,40.13]
[1754940332210,26.0,178.03,178.02,130.03]
[1754940333795,0.03,178.04,178.03,6.75241793]
[1754940334015,0.03,178.04,178.03,96.65241793]
[1754940337220,0.03,178.04,178.03,90.61]
[1754940337394,0.03,178.04,178.03,96.65241793]
[1754940338304,0.03,178.04,178.03,90.61]
[1754940339225,0.03,178.04,178.03,89.9]
[1754940339426,6.75241793,178.04,178.03,129.28]
[1754940340014,6.94313133,178.04,178.03,129.28]
[1754940341026,7.50775218,178.04,178.03,39.38]
[1754940341337,13.12446752,178.04,178.03,39.38]
[1754940341515,17.82868997,178.04,178.01,89.96]
[1754940341695,11.10627204,178.04,178.02,39.38]
[1754940341900,11.68913327,178.04,178.02,40.09]
[1754940342501,5.64671534,178.04,178.02,40.09]
[1754940343334,5.8374577,178.04,178.02,40.09]
[1754940344096,5.8374577,178.04,178.02,129.99]
[1754940344398,5.8374577,178.04,178.02,129.28]
[1754940344620,11.87987563,178.04,178.02,129.28]
[1754940344811,12.55987563,178.04,178.02,129.28]
[1754940345012,5.8374577,178.04,178.02,129.99]
[1754940345602,11.87987563,178.04,178.02,89.9]
[1754940345809,6.04241793,178.03,178.02,89.9]
[1754940346047,6.04241793,178.03,178.02,129.26]
[1754940347128,11.65944876,178.03,178.02,129.26]
[1754940347447,12.22406961,178.03,178.02,129.26]
[1754940348630,11.65944876,178.03,178.02,129.26]
[1754940349623,5.61703083,178.03,178.02,129.26]
[1754940349922,5.83753264,178.04,178.02,129.93]
[1754940350129,5.83753264,178.04,178.03,0.67]
[1754940351011,0.22074236,178.04,178.03,0.67]
[1754940351331,26.22074236,178.04,178.03,0.67]
[1754940352519,26.03,178.04,178.03,0.67]
[1754940353222,31.64671534,178.04,178.03,0.67]
[1754940354221,37.68913327,178.04,178.01,0.06]
[1754940354444,6.04241793,178.02,178.01,0.06]
[1754940354624,6.04241793,178.02,178.01,39.42]
[1754940354830,6.75241793,178.02,178.01,39.42]
[1754940355026,11.64739669,178.02,178.01,0.06]
[1754940355233,6.94317424,178.02,178.01,0.06]
[1754940355450,12.5605206,178.02,178.01,0.06]
[1754940360539,11.8505206,178.02,178.01,0.06]
[1754940361075,5.80810267,178.02,178.01,0.73]
[1754940361234,5.80810267,178.02,178.01,40.09]
[1754940361434,5.61734636,178.02,178.01,40.09]
[1754940364046,11.65976429,178.02,178.01,40.09]
[1754940364361,11.65976429,178.02,178.01,39.42]
[1754940364545,12.36976429,178.02,178.01,0.06]
[1754940364746,12.36976429,178.02,178.01,89.96]
[1754940365051,12.56053133,178.02,178.01,89.96]
[1754940366156,11.85053133,178.02,178.01,89.96]
[1754940366357,16.5659486,178.02,178.01,89.96]
[1754940367757,16.5659486,178.02,178.01,90.63]
[1754940368673,16.5659486,178.02,178.01,89.96]
[1754940368874,11.85053133,178.02,178.01,89.96]
[1754940369178,16.56526817,178.02,178.01,89.96]
[1754940369540,16.56526817,178.02,178.01,90.63]
[1754940369960,10.52285024,178.02,178.01,90.63]
[1754940370158,11.85053133,178.02,178.01,90.63]
[1754940370646,11.65976429,178.02,178.01,0.73]
[1754940370858,11.65976429,178.02,178.01,40.09]
[1754940371390,11.65976429,178.02,178.01,39.42]
[1754940372343,5.61734636,178.02,178.01,39.42]
[1754940372547,11.65976429,178.02,178.01,40.09]
[1754940374082,10.52264151,178.03,178.01,40.09]
[1754940374290,10.52264151,178.03,178.02,0.67]
[1754940374463,4.71473684,178.03,178.02,0.67]
[1754940374777,10.36147902,178.04,178.02,0.67]
[1754940374961,26.0,178.03,178.02,0.67]
[1754940375166,26.0,178.03,178.02,40.03]
[1754940376176,0.03,178.04,178.02,135.97241793]
[1754940376376,0.03,178.04,178.03,6.71241793]
[1754940376558,0.03,178.04,178.03,0.67]
[1754940379574,0.03,178.04,178.03,90.57]
[1754940380278,6.07241793,178.04,178.03,89.9]
[1754940380576,6.07241793,178.04,178.03,129.26]
[1754940380875,0.03,178.04,178.03,129.92]
[1754940381874,26.03,178.04,178.03,129.92]
[1754940382081,26.03,178.04,178.03,135.96241793]
[1754940382552,26.03,178.04,178.03,129.92]
[1754940382754,26.03,178.04,178.03,135.96241793]
[1754940383155,26.03,178.04,178.03,129.92]
[1754940383350,26.03,178.04,178.03,135.96241793]
[1754940383957,26.03,178.04,178.03,129.92]
[1754940384261,26.03,178.04,178.03,129.9]
[1754940384977,0.03,178.04,178.03,129.24]
[1754940385788,0.03,178.04,178.03,129.9]
[1754940386572,0.03,178.04,178.03,129.24]
[1754940386965,6.07241793,178.04,178.03,129.24]
[1754940387171,46.64703878,178.04,178.02,0.06]
[1754940387470,6.71241793,178.03,178.02,0.06]
[1754940387678,23.59147993,178.03,178.02,0.06]
[1754940387881,23.78220405,178.03,178.02,1e-08]
[1754940388269,12.52017288,178.03,178.02,1e-08]
[1754940389197,11.85017288,178.03,178.02,1e-08]
[1754940389383,11.65944876,178.03,178.02,1e-08]
[1754940389571,12.32944876,178.03,178.02,1e-08]
[1754940389898,16.37971363,178.03,178.02,1e-08]
[1754940390222,16.57043775,178.03,178.02,1e-08]
[1754940393497,11.85017288,178.03,178.02,1e-08]
[1754940393699,16.57043775,178.03,178.02,1e-08]
[1754940394203,11.85017288,178.03,178.02,1e-08]
[1754940394397,16.57043775,178.03,178.02,1e-08]
[1754940395294,11.85017288,178.03,178.02,1e-08]
[1754940395488,16.57043775,178.03,178.02,1e-08]
[1754940396180,12.52017288,178.03,178.02,1e-08]
[1754940396689,17.24043775,178.03,178.02,1e-08]
[1754940397297,17.24043775,178.03,178.02,89.90000001]
[1754940398099,12.52017288,178.03,178.02,89.90000001]
[1754940399203,12.52017288,178.03,178.02,33.00220097]
[1754940399400,12.32944876,178.03,178.02,4.41125881]
[1754940399587,12.32944876,178.03,178.01,0.06]
[1754940399794,7.27703878,178.02,178.01,0.06]
[1754940400604,13.08515218,178.02,178.0,500.0]
[1754940400807,6.71241793,178.01,178.0,500.0]
[1754940401018,6.71241793,178.01,178.0,468.92100526]
[1754940401322,6.90318497,178.01,178.0,467.99545346]
[1754940403021,12.52084689,178.01,178.0,467.99545346]
[1754940403844,11.85084689,178.01,178.0,468.05545346]
[1754940406814,5.80842896,178.01,178.0,468.71545346]
[1754940407151,31.61766192,178.01,178.0,468.71545346]
[1754940407514,37.66007985,178.01,178.0,468.71545346]
[1754940407935,37.85089734,178.01,178.0,468.71545346]
[1754940408109,37.85089734,178.01,178.0,468.05545346]
[1754940408931,18.58331527,178.01,178.0,468.05545346]
[1754940409143,18.95711863,178.01,178.0,468.05545346]
[1754940409831,19.14793612,178.01,178.0,468.05545346]
[1754940411115,13.10551819,178.01,178.0,468.05545346]
[1754940415619,12.41551819,178.01,178.0,468.05545346]
[1754940418444,12.41551819,178.01,178.0,439.07096879]
[1754940418445,13.10551819,178.01,178.0,439.07096879]
[1754940418617,34.25415169,178.01,178.0,366.32942957]
[1754940418822,65.36,178.01,178.0,326.17568248]
[1754940419024,77.44483586,178.01,178.0,256.58060841]
[1754940419525,77.44483586,178.01,178.0,222.5253603]
[1754940419725,77.44483586,178.01,178.0,189.61132246]
[1754940419925,77.44483586,178.01,178.0,156.69728462]
[1754940420153,71.40241793,178.01,178.0,157.37728462]
[1754940420651,77.02007985,178.01,178.0,157.37728462]
[1754940421155,77.02007985,178.01,178.0,156.69728462]
[1754940422650,83.06249778,178.01,178.0,126.39889469]
[1754940422847,83.06249778,178.01,178.0,96.6951371]
[1754940423354,83.06249778,178.01,178.0,34.20110966]
[1754940423652,83.06249778,178.01,178.0,3.36785865]
[1754940423840,83.06249778,178.01,177.97,90.64]
[1754940423841,31.61860883,177.98,177.97,89.96]
[1754940424048,37.66102676,177.98,177.97,89.96]
[1754940424542,37.66102676,177.98,177.97,90.64]
[1754940428943,42.13805219,177.98,177.97,90.64]
[1754940429338,37.66102676,177.98,177.97,90.64]
[1754940430727,5.64768154,178.01,177.98,10.0]
[1754940430958,0.03,178.01,178.0,10.0]
[1754940431252,26.0,178.0,177.99,49.36]
[1754940431839,16.10223947,178.01,177.99,40.04]
[1754940432040,6.04241793,178.0,177.99,49.36]
[1754940432253,11.69018161,178.01,177.99,49.36]
[1754940432551,11.69018161,178.01,178.0,0.68]
[1754940433834,11.69018161,178.01,177.98,89.9]
[1754940433835,26.0,177.99,177.98,89.9]
[1754940434036,32.04241793,177.99,177.98,129.94]
[1754940434237,32.04241793,177.99,177.98,129.26]
[1754940434437,32.04241793,177.99,177.98,89.9]
[1754940434861,73.68692299,177.99,177.97,0.06]
[1754940435047,6.23241793,177.98,177.97,0.06]
[1754940435961,11.66102676,177.98,177.97,0.06]
[1754940436870,14.48662673,177.98,177.97,0.06]
[1754940439367,14.98662673,177.98,177.97,0.06]
[1754940441376,8.9442088,177.98,177.97,0.06]
[1754940441556,14.98662673,177.98,177.97,0.74]
[1754940445675,12.16102676,177.98,177.97,90.64]
[1754940447384,12.16102676,177.98,177.97,89.96]
[1754940448378,12.19102676,177.98,177.97,89.96]
[1754940448985,12.19102676,177.98,177.97,90.64]
[1754940450451,12.19102676,177.98,177.97,89.96]
[1754940450654,14.28862103,177.98,177.97,89.96]
[1754940450856,14.47862103,177.98,177.97,89.96]
[1754940451273,14.28862103,177.98,177.97,89.96]
[1754940451868,12.19102676,177.98,177.97,89.96]
[1754940452179,12.19102676,177.98,177.97,90.64]
[1754940452775,12.19102676,177.98,177.97,89.96]
[1754940454786,12.19102676,177.98,177.97,90.64]
[1754940454989,6.14860883,177.98,177.97,90.64]
[1754940455191,12.19102676,177.98,177.97,90.64]
[1754940460589,26.53,177.98,177.97,90.64]
[1754940460771,26.53,177.98,177.97,106.68241793]
[1754940461289,0.53,177.98,177.97,106.68241793]
[1754940462385,0.53,177.98,177.97,121.7886335]
[1754940463994,0.03,177.98,177.97,121.7886335]
[1754940464197,0.03,177.98,177.97,115.74621557]
[1754940464390,0.03,177.98,177.97,121.7886335]
[1754940465300,26.0,177.99,177.98,89.87]
[1754940465601,26.0,177.99,177.98,135.93241793]
[1754940465892,26.0,177.99,177.98,129.89]
[1754940466276,26.0,177.99,177.98,100.55]
[1754940466491,26.0,177.99,177.98,139.89]
[1754940467401,26.0,177.99,177.98,161.0386335]
[1754940467580,0.03,178.01,177.98,161.0386335]
[1754940467581,0.03,178.01,178.0,10.0]
[1754940467787,0.03,178.01,178.0,55.38241793]
[1754940467978,0.03,178.01,178.0,50.01]
[1754940470186,0.03,178.01,178.0,56.05241793]
[1754940470983,17.2676963,178.02,178.01,104.94621557]
[1754940471188,17.2676963,178.02,178.01,121.6586335]
[1754940471996,0.03,178.02,178.01,121.6586335]
[1754940472299,26.03,178.02,178.01,121.6586335]
[1754940472603,26.03,178.02,178.01,115.61621557]
[1754940474701,32.07241793,178.02,178.01,99.84]
[1754940475281,26.03,178.02,178.01,99.84]
[1754940475483,32.07241793,178.02,178.01,99.84]
[1754940476283,26.03,178.02,178.01,99.84]
[1754940477282,26.03,178.02,178.01,100.51]
[1754940477486,26.03,178.02,178.01,106.55241793]
[1754940479182,0.03,178.02,178.01,121.6586335]
[1754940480201,0.03,178.05,178.04,73.78]
[1754940480508,0.03,178.05,178.04,119.14241793]
[1754940480705,0.03,178.05,178.04,113.1]
[1754940482187,26.03,178.05,178.04,113.1]
[1754940483102,26.03,178.05,178.04,113.77]
[1754940485209,26.03,178.05,178.04,119.81241793]
[1754940485409,0.03,178.05,178.04,119.81241793]
[1754940487211,0.03,178.05,178.04,113.77]
[1754940487511,0.03,178.05,178.04,119.81241793]
[1754940488003,0.03,178.05,178.04,113.77]
[1754940489124,0.03,178.05,178.04,113.1]
[1754940490193,0.03,178.05,178.04,119.81241793]
[1754940490392,26.0,178.06,178.05,63.75]
[1754940490620,26.0,178.06,178.05,64.42]
[1754940490823,26.0,178.06,178.05,74.42]
[1754940491321,26.0,178.06,178.05,73.75]
[1754940491518,26.03,178.07,178.06,10.0]
[1754940491721,26.03,178.07,178.06,49.99]
[1754940491941,0.72,178.07,178.06,49.32]
[1754940492104,0.03,178.07,178.06,49.32]
[1754940493140,6.76241793,178.07,178.06,39.32]
[1754940493336,6.76241793,178.07,178.06,49.32]
[1754940493635,6.76241793,178.07,178.06,39.32]
[1754940494134,6.76241793,178.07,178.06,49.32]
[1754940494440,6.07241793,178.07,178.06,49.32]
[1754940494636,0.03,178.07,178.06,49.99]
[1754940495005,26.03,178.07,178.06,113.74]
[1754940495228,0.03,178.07,178.06,113.74]
[1754940495607,0.03,178.07,178.06,113.07]
[1754940495932,32.76241793,178.07,178.06,103.07]
[1754940496129,32.76241793,178.07,178.06,113.07]
[1754940497110,32.07241793,178.07,178.06,113.07]
[1754940497308,38.358187,178.07,178.06,103.07]
[1754940497508,38.358187,178.07,178.06,113.07]
[1754940497726,37.688187,178.07,178.06,113.07]
[1754940497938,26.03,178.07,178.06,113.79]
[1754940498119,26.03,178.07,178.06,113.07]
[1754940498320,26.03,178.07,178.06,103.07]
[1754940498522,26.03,178.07,178.06,113.07]
[1754940499148,26.03,178.07,178.06,113.79]
[1754940500341,0.03,178.07,178.06,119.83241793]
[1754940500715,0.03,178.07,178.06,113.79]
[1754940501118,0.03,178.07,178.06,119.83241793]
[1754940502073,0.03,178.07,178.06,134.9386335]
[1754940505060,0.03,178.07,178.06,128.17621557]
[1754940505245,0.03,178.07,178.06,134.9386335]
[1754940505943,26.0,178.1,178.09,73.69]
[1754940506142,26.0,178.1,178.09,113.71]
[1754940507659,26.0,178.1,178.09,128.81621557]
[1754940507883,26.03,178.11,178.1,10.0]
[1754940508057,26.03,178.11,178.1,16.04241793]
[1754940508356,26.03,178.11,178.1,16.76241793]
[1754940509659,26.03,178.11,178.1,80.45241793]
[1754940510564,26.03,178.11,178.1,74.41]
[1754940510758,26.03,178.11,178.1,73.69]
[1754940511154,38.35692581,178.11,178.1,63.69]
[1754940511345,38.35692581,178.11,178.1,102.99]
[1754940512550,58.43561346,178.11,178.08,39.3]
[1754940512750,58.43561346,178.11,178.05,10.0]
[1754940512751,26.0,178.06,178.05,10.0]
[1754940513047,32.71241793,178.06,178.05,49.3]
[1754940513435,19.6807776,178.11,178.05,49.3]
[1754940513436,26.0,178.07,178.06,10.0]
[1754940513637,26.0,178.07,178.06,10.72]
[1754940513850,32.04241793,178.1,178.08,10.0]
[1754940514062,32.04241793,178.1,178.09,39.3]
[1754940514280,26.0,178.1,178.09,39.3]
[1754940514761,31.61482313,178.1,178.09,39.3]
[1754940515378,26.0,178.1,178.09,39.3]
[1754940515677,26.0,178.1,178.09,40.02]
[1754940515974,26.0,178.1,178.09,50.02]
[1754940517097,26.0,178.1,178.09,56.06241793]
[1754940517470,26.0,178.1,178.09,50.02]
[1754940519589,26.0,178.1,178.09,49.3]
[1754940521157,26.0,178.1,178.09,50.02]
[1754940521572,26.0,178.1,178.09,113.71]
[1754940524067,0.03,178.11,178.1,10.0]
[1754940524266,0.03,178.11,178.1,16.76241793]
[1754940528079,26.0,178.14,178.13,112.88]
[1754940529778,26.0,178.14,178.13,113.57]
[1754940531300,0.03,178.15,178.14,25.10621557]
[1754940531482,0.03,178.15,178.14,31.8386335]
[1754940532092,0.03,178.15,178.14,25.79621557]
[1754940532679,0.03,178.15,178.14,49.28]
[1754940533705,6.76241793,178.15,178.14,49.28]
[1754940534610,6.76241793,178.15,178.14,39.28]
[1754940534914,26.0,178.12,178.11,73.6]
[1754940535096,32.73241793,178.12,178.11,112.88]
[1754940536395,32.04241793,178.12,178.11,112.88]
[1754940536602,32.73241793,178.12,178.11,112.88]
[1754940537708,32.04241793,178.12,178.11,112.88]
[1754940538178,32.04241793,178.12,178.11,102.88]
[1754940538384,32.04241793,178.12,178.11,112.88]
[1754940538580,26.03,178.15,178.12,10.0]
[1754940538878,26.03,178.15,178.14,10.0]
[1754940538879,0.03,178.15,178.14,10.0]
[1754940539102,0.03,178.15,178.14,10.69]
[1754940539300,0.03,178.15,178.14,74.29]
[1754940539783,0.03,178.15,178.14,73.6]
[1754940541502,0.03,178.15,178.14,74.29]
[1754940542985,0.03,178.15,178.14,73.6]
[1754940543190,0.34,178.15,178.14,73.6]
[1754940543390,0.34,178.15,178.14,112.88]
[1754940543602,0.03,178.15,178.14,112.88]
[1754940543790,6.07241793,178.15,178.14,112.88]
[1754940544312,11.68566519,178.15,178.14,112.88]
[1754940544891,12.30566519,178.15,178.14,112.88]
[1754940546021,12.30566519,178.15,178.14,102.88]
[1754940546189,6.26324726,178.15,178.14,102.88]
[1754940546383,12.30566519,178.15,178.14,102.88]
[1754940546584,5.64324726,178.15,178.14,102.88]
[1754940547108,0.03,178.15,178.14,113.57]
[1754940548219,0.03,178.15,178.14,119.61241793]
[1754940548515,0.03,178.15,178.14,113.57]
[1754940548712,0.03,178.15,178.14,112.88]
[1754940549493,0.03,178.15,178.14,113.57]
[1754940553713,0.03,178.15,178.14,113.57]
[1754940557040,6.07241793,178.15,178.14,73.6]
[1754940557248,6.07241793,178.15,178.14,112.86]
[1754940557431,0.03,178.15,178.14,112.86]
[1754940558654,37.68566519,178.15,178.14,112.86]
[1754940559333,31.64324726,178.15,178.14,113.54]
[1754940559643,31.64324726,178.15,178.14,112.86]
[1754940559940,26.03,178.15,178.14,113.54]
[1754940560138,0.03,178.15,178.14,119.58241793]
[1754940560949,0.03,178.15,178.14,113.54]
[1754940561153,0.03,178.15,178.14,119.58241793]
[1754940561452,0.03,178.15,178.14,113.54]
[1754940563229,0.03,178.15,178.14,112.86]
[1754940564927,0.03,178.15,178.14,113.54]
[1754940572656,0.03,178.15,178.14,128.64621557]
[1754940572844,0.03,178.15,178.14,127.96621557]
[1754940573174,6.07241793,178.15,178.14,73.6]
[1754940573349,6.07241793,178.15,178.14,112.86]
[1754940575066,11.68566519,178.15,178.14,112.86]